fUSD/lending_fUSD_20260412
["ID","MTS","AMOUNT","RATE_DAILY","PERIOD"]
[420318080,1775958645919,-2225.0,0.00016,2]
[420318081,1775958646247,-2872.76,0.00016,2]
[420318082,1775958646367,-72354.0,0.00016,2]
[420318083,1775958646380,-5040.0,0.00016,2]
[420318084,1775958646396,-3223.27413103,0.00016,2]
[420318085,1775958646408,-199028.92637555,0.00016,2]
[420318100,1775958689490,312.999226,0.00023691,120]
[420318101,1775958707174,328.0,0.0003013,120]
[420318102,1775958762951,535.07737781,0.0003013,120]
[420318103,1775958860667,1000.0,0.00030137,120]
[420318104,1775959121721,151.91419693,0.0003,120]
[420318105,1775959138996,4038.28599067,0.000295,120]
[420318106,1775959222179,761.9,0.00030136,120]
[420318107,1775959250876,153.28,6.902e-05,2]
[420318108,1775959251083,153.28,7.395e-05,2]
[420318109,1775959251501,153.28,7.889e-05,2]
[420318110,1775959251739,153.28,8.382e-05,2]
[420318111,1775959299244,583.10297748,0.00029999,120]
[420318112,1775959299569,334.02155048,0.00029,120]
[420318122,1775959832016,-153.28,8.875e-05,2]
[420318123,1775959832043,-252.45839484,8.875e-05,2]
[420318124,1775959832056,-240.41905828,8.875e-05,2]
[420318125,1775959832077,-16.99169128,8.875e-05,2]
[420318126,1775959832086,-153.28,9.368e-05,2]
[420318127,1775959832099,-150.0,9.585e-05,2]
[420318128,1775959832116,-300.0,9.761e-05,2]
[420318129,1775959832128,-300.0,9.761e-05,2]
[420318130,1775959832137,-1200.0,9.761e-05,2]
[420318131,1775959832154,-193.0,9.762e-05,2]
[420318132,1775959832168,-5000.0,9.762e-05,2]
[420318133,1775959832188,-250.0,9.762e-05,2]
[420318134,1775959832198,-153.28,9.861e-05,2]
[420318135,1775959832207,-153.62606031,0.0001,2]
[420318136,1775959832228,-211.5260607,0.00010254,2]
[420318137,1775959832238,-153.28,0.00010354,2]
[420318138,1775959832249,-150.0,0.000106,2]
[420318139,1775959832259,-165.4396005,0.00010673,2]
[420318140,1775959832271,-201.74506442,0.00010694,2]
[420318141,1775959832282,-300.0,0.00010699,2]
[420318142,1775959832293,-150.0,0.00010699,2]
[420318143,1775959832302,-1519.65748913,0.000107,2]
[420318144,1775959832318,-303.8818997,0.000107,2]
[420318145,1775959832362,-385.00293256,0.000107,2]
[420318146,1775959832382,-417.51182976,0.000107,2]
[420318147,1775959832405,-971.72153587,0.000107,2]
[420318148,1775959832438,-523.48447467,0.000107,2]
[420318151,1775959832449,-3200.41564869,0.000107,2]
[420318155,1775959832541,-18561.01150569,0.000107,2]
[420318157,1775959832559,-153.62606031,0.000107,2]
[420318159,1775959832586,-153.62606031,0.000107,2]
[420318161,1775959832597,-1680.0,0.00010737,2]
[420318163,1775959832608,-153.28,0.00010847,2]
[420318165,1775959832624,-153.28,0.0001134,2]
[420318167,1775959832634,-234.49701434,0.00011709,5]
[420318169,1775959832644,-255.0,0.00011737,2]
[420318171,1775959832654,-302.0,0.00011761,2]
[420318173,1775959832671,-2351.0,0.00011811,2]
[420318175,1775959832682,-153.28,0.00011833,2]
[420318177,1775959832691,-211.52606068,0.0001198,2]
[420318179,1775959832707,-150.0,0.00011981,2]
[420318180,1775959832723,-153.28,0.00012326,2]
[420318182,1775959832733,-153.28,0.00012819,2]
[420318184,1775959832743,-286.0,0.00012871,2]
[420318185,1775959832778,-472.42972236,0.00012922,2]
[420318187,1775959832790,-979.0,0.00012992,2]
[420318189,1775959832855,-250.0,0.00013,2]
[420318191,1775959832874,-5655.44402027,0.00013,2]
[420318192,1775959832893,-726.06,0.00013008,2]
[420318194,1775959832905,-500.0,0.00013032,3]
[420318195,1775959832927,-251.96,0.00013117,2]
[420318196,1775959832938,-153.28,0.00013312,2]
[420318197,1775959832948,-150.1829,0.000134,2]
[420318198,1775959832964,-1000.0,0.000135,2]
[420318199,1775959832990,-3074.0,0.00013699,2]
[420318200,1775959833000,-150.0,0.00013699,2]
[420318201,1775959833012,-150.0,0.00013699,2]
[420318202,1775959833035,-150.0,0.00013699,2]
[420318203,1775959833055,-497.87,0.00013699,2]
[420318204,1775959833065,-200.0,0.00013699,2]
[420318205,1775959833083,-211.52606068,0.00013705,2]
[420318206,1775959833093,-500.0,0.00013788,2]
[420318207,1775959833103,-500.0,0.00013788,2]
[420318208,1775959833113,-500.0,0.00013788,2]
[420318209,1775959833131,-500.0,0.00013788,2]
[420318210,1775959833143,-500.0,0.00013788,2]
[420318211,1775959833155,-500.0,0.00013788,2]
[420318212,1775959833178,-500.0,0.00013788,2]
[420318213,1775959833188,-160.06788445,0.00013788,2]
[420318214,1775959833203,-500.0,0.00013788,2]
[420318215,1775959833213,-500.0,0.00013788,2]
[420318216,1775959833226,-500.0,0.00013788,2]
[420318217,1775959833237,-500.0,0.00013788,2]
[420318218,1775959833252,-500.0,0.00013788,2]
[420318219,1775959833270,-500.0,0.00013788,2]
[420318220,1775959833279,-500.0,0.00013788,2]
[420318221,1775959833298,-500.0,0.00013788,2]
[420318222,1775959833309,-500.0,0.00013788,2]
[420318223,1775959833322,-500.0,0.00013788,2]
[420318224,1775959833334,-37128.03350364,0.00013789,2]
[420318225,1775959833345,-12584.92,0.00013799,2]
[420318226,1775959833357,-153.28,0.00013805,2]
[420318227,1775959833368,-150.0,0.00013973,2]
[420318228,1775959833380,-497.87,0.00014384,2]
[420318229,1775959833391,-444.92426112,0.0001439,2]
[420318230,1775959833401,-471.38,0.00014482,2]
[420318231,1775959833411,-200.0,0.00014763,2]
[420318232,1775959833421,-500.0,0.00014822,2]
[420318233,1775959833434,-4887.229,0.00014961,2]
[420318234,1775959833446,-5967.75570609,0.00014968,2]
[420318235,1775959833455,-1500.0,0.00014981,2]
[420318236,1775959833467,-2500.0,0.0001499,2]
[420318237,1775959833479,-300.0,0.00015,2]
[420318238,1775959833488,-7460.00760421,0.0001506,2]
[420318239,1775959833498,-10102.36043321,0.00015061,2]
[420318240,1775959833509,-497.87,0.00015068,2]
[420318241,1775959833521,-506.78365876,0.00015091,2]
[420318242,1775959833532,-490.0,0.00015091,2]
[420318243,1775959833542,-605.62770244,0.00015091,2]
[420318244,1775959833551,-500.0,0.00015091,2]
[420318245,1775959833569,-500.0,0.00015161,2]
[420318246,1775959833581,-500.0,0.00015161,2]
[420318247,1775959833601,-500.0,0.00015161,2]
[420318248,1775959833610,-500.0,0.00015161,2]
[420318249,1775959833619,-500.0,0.00015161,2]
[420318250,1775959833630,-500.0,0.00015161,2]
[420318251,1775959833646,-150.0,0.00015161,2]
[420318252,1775959833663,-150.0,0.00015161,2]
[420318253,1775959833674,-208.67891439,0.00015161,2]
[420318254,1775959833684,-150.0,0.00015161,2]
[420318255,1775959833695,-1000.0,0.00015202,2]
[420318256,1775959833705,-251.96,0.0001528,2]
[420318257,1775959833716,-1517.64,0.000153,2]
[420318258,1775959833727,-500.0,0.00015319,2]
[420318259,1775959833740,-276.76578826,0.0001532,2]
[420318260,1775959833754,-150.0,0.00015471,2]
[420318261,1775959833767,-1434.99,0.00015471,2]
[420318262,1775959833783,-3006.74,0.00015507,2]
[420318263,1775959833793,-346.380675,0.0001568,2]
[420318264,1775959833807,-350.0,0.00015726,2]
[420318265,1775959833821,-497.87,0.00015753,2]
[420318266,1775959833835,-485.47152628,0.00015839,2]
[420318267,1775959833850,-1760.605,0.0001589,2]
[420318268,1775959833869,-182.585,0.0001589,2]
[420318269,1775959833886,-3006.74,0.00015895,2]
[420318270,1775959833895,-180.73436039,0.000159,2]
[420318271,1775959833929,-4618.57500941,0.000159,2]
[420318272,1775959833939,-350.0,0.00015917,3]
[420318273,1775959833966,-250.0,0.00015945,2]
[420318274,1775959833975,-250.0,0.00015945,2]
[420318275,1775959833998,-401.54510774,0.00015984,2]
[420318276,1775959834027,-889.6930811,0.00015995,2]
[420318277,1775959834038,-27574.7635923,0.00015995,2]
[420318278,1775959834066,-669.65587208,0.00015999,2]
[420318279,1775959834076,-500.0,0.00015999,2]
[420318280,1775959834102,-500.0,0.00015999,2]
[420318281,1775959834113,-510.51710892,0.00015999,2]
[420318282,1775959834151,-195.28025692,0.00015999,2]
[420318283,1775959834179,-216.23300152,0.00015999,2]
[420318284,1775959834188,-264.60434849,0.00015999,2]
[420318285,1775959834428,-500.0,0.00015999,2]
[420318286,1775959834438,-500.0,0.00015999,2]
[420318287,1775959834453,-187.80301035,0.00015999,2]
[420318288,1775959834464,-2454.0,0.00016,5]
[420318289,1775959834474,-1509.66444051,0.00016,2]
[420318290,1775959834488,-20112.31340016,0.00016,2]
[420318291,1775959834506,-15688.65211173,0.00016,2]
[420318292,1775959834517,-7283.02287851,0.00016,2]
[420318304,1775959838499,-309.14823384,0.00010547,2]
[420318305,1775959838511,-1365.04139511,0.00010547,2]
[420318306,1775959838545,-1603.95108957,0.00010547,2]
[420318307,1775959838557,-2307.73590348,0.00010547,2]
[420318308,1775959838595,-164.93,0.00013287,2]
[420318309,1775959838609,-164.93,0.00014616,2]
[420318310,1775959838617,-164.93,0.00015945,2]
[420318311,1775959838648,-3036.97096176,0.00016,2]
[420318312,1775959838665,-4688.52311579,0.00016,2]
[420318320,1775959843342,-391.207026,0.0001568,2]
[420318321,1775959843361,-8302.69069305,0.00016,2]
[420318322,1775959843372,-101325.53742061,0.00016,2]
[420318328,1775959846023,-163.99,0.00015695,2]
[420318329,1775959846045,-5311.06292081,0.00016,2]
[420318330,1775959846086,-513.58134258,0.00016,2]
[420318331,1775959846219,-1413.16612,0.00016,2]
[420318332,1775959846231,-904.1691645,0.00016,2]
[420318333,1775959846407,-14325.84858387,0.00016,2]
[420318334,1775959846420,-11090.88729095,0.00016,2]
[420318359,1775959907252,713.0,0.0003013,120]
[420318360,1775959909301,252.21190071,0.0003013,120]
[420318361,1775959993651,501.17,0.0003013,120]
[420318362,1775960425546,500.0,0.0003013,120]
[420318363,1775960767187,2000.0,0.00030137,120]
[420318368,1775961032587,-171.13,0.00011268,2]
[420318369,1775961032600,-78.87,0.00011268,2]
[420318370,1775961032615,-521.13,0.00011268,2]
[420318371,1775961032625,-161.14871702,0.00012295,2]
[420318372,1775961032634,-600.0,0.00012395,2]
[420318373,1775961032646,-600.0,0.00012395,2]
[420318374,1775961032660,-500.0,0.00012521,2]
[420318375,1775961032670,-250.0,0.00013,2]
[420318376,1775961032679,-151.16,0.00013684,2]
[420318377,1775961032692,-166.66,0.00013699,2]
[420318378,1775961032706,-250.3660372,0.00013731,2]
[420318379,1775961032716,-166.66,0.00013952,2]
[420318380,1775961032727,-1612.4,0.0001401,2]
[420318381,1775961032738,-340.49,0.00014017,2]
[420318382,1775961032754,-1200.0,0.00014042,2]
[420318383,1775961032763,-500.0,0.00014043,2]
[420318384,1775961032779,-171.13,0.00014085,2]
[420318385,1775961032795,-150.0,0.00014107,2]
[420318386,1775961032812,-166.66,0.00014206,2]
[420318387,1775961032821,-5721.22,0.00014292,2]
[420318388,1775961032831,-150.0,0.000144,2]
[420318389,1775961032843,-150.0,0.000144,2]
[420318391,1775961032864,-150.0,0.000144,2]
[420318394,1775961032874,-150.0,0.000144,2]
[420318397,1775961032886,-150.10086627,0.000144,2]
[420318400,1775961032904,-150.0,0.000144,2]
[420318402,1775961032914,-150.0,0.000144,2]
[420318404,1775961032926,-150.19953523,0.000144,2]
[420318406,1775961032943,-150.0,0.000144,2]
[420318408,1775961032953,-150.28684521,0.000144,2]
[420318410,1775961032963,-150.0,0.000144,2]
[420318411,1775961032973,-150.0,0.000144,2]
[420318413,1775961032986,-243.87,0.000144,2]
[420318414,1775961032999,-166.66,0.00014459,2]
[420318415,1775961033015,-150.0,0.000146,2]
[420318417,1775961033033,-243.87,0.00014674,2]
[420318418,1775961033060,-166.66,0.00014713,2]
[420318419,1775961033104,-150.0,0.0001472,2]
[420318420,1775961033249,-150.0,0.000148,2]
[420318421,1775961033332,-150.0,0.000148,2]
[420318422,1775961033351,-150.0,0.000148,2]
[420318423,1775961033373,-150.0,0.000148,2]
[420318424,1775961033386,-6531.68,0.00014876,2]
[420318425,1775961033405,-3240.0,0.00014881,2]
[420318426,1775961033422,-1400.0,0.000149,2]
[420318427,1775961033434,-243.89843118,0.00014948,2]
[420318428,1775961033447,-166.66,0.00014966,2]
[420318429,1775961033464,-1000.0,0.00014992,2]
[420318430,1775961033477,-150.0,0.00015,2]
[420318431,1775961033488,-300.0,0.00015,2]
[420318432,1775961033502,-150.0,0.0001504,2]
[420318433,1775961033516,-500.0,0.00015161,2]
[420318434,1775961033525,-500.0,0.00015161,2]
[420318435,1775961033538,-500.0,0.00015161,2]
[420318436,1775961033551,-418.0,0.00015161,2]
[420318437,1775961033564,-150.0,0.00015161,2]
[420318438,1775961033574,-150.0,0.00015161,2]
[420318439,1775961033586,-150.0,0.00015161,2]
[420318440,1775961033598,-153.2535563,0.00015161,2]
[420318441,1775961033610,-503.43108761,0.00015161,2]
[420318442,1775961033619,-503.91959101,0.00015173,2]
[420318443,1775961033628,-500.0,0.00015173,2]
[420318444,1775961033637,-264.7192015,0.00015173,2]
[420318445,1775961033648,-308.46681715,0.00015173,2]
[420318446,1775961033657,-500.0,0.00015173,2]
[420318447,1775961033666,-500.0,0.00015173,2]
[420318448,1775961033676,-585.48304635,0.00015199,2]
[420318449,1775961033685,-479.84542203,0.00015199,2]
[420318450,1775961033694,-646.65982734,0.00015199,2]
[420318451,1775961033703,-7218.00706898,0.00015199,2]
[420318452,1775961033712,-200.0,0.00015199,2]
[420318453,1775961033721,-500.0,0.00015199,2]
[420318454,1775961033730,-743.50770149,0.00015199,2]
[420318455,1775961033739,-151.0,0.00015199,2]
[420318456,1775961033748,-500.0,0.00015199,2]
[420318457,1775961033758,-500.0,0.00015199,2]
[420318458,1775961033767,-499.15416611,0.00015199,2]
[420318459,1775961033776,-170.0,0.00015199,2]
[420318460,1775961033786,-170.0,0.00015199,2]
[420318461,1775961033797,-170.0,0.00015199,2]
[420318462,1775961033807,-170.0,0.00015199,2]
[420318463,1775961033817,-174.61919141,0.00015199,2]
[420318464,1775961033826,-170.0,0.00015199,2]
[420318465,1775961033840,-279.9045709,0.00015199,2]
[420318466,1775961033850,-170.0,0.00015199,2]
[420318467,1775961033864,-170.0,0.00015199,2]
[420318468,1775961033876,-170.0,0.00015199,2]
[420318469,1775961033885,-168.21283791,0.00015199,2]
[420318470,1775961033895,-150.0,0.000152,2]
[420318471,1775961033916,-150.0,0.000152,2]
[420318472,1775961033926,-150.0,0.000152,2]
[420318473,1775961033941,-350.0,0.00015241,2]
[420318474,1775961033966,-500.0,0.00015254,2]
[420318475,1775961033987,-151.0,0.00015254,2]
[420318476,1775961034029,-500.0,0.00015309,2]
[420318477,1775961034065,-151.0,0.00015309,2]
[420318478,1775961034097,-582.79560097,0.0001532,2]
[420318479,1775961034110,-500.0,0.0001535,2]
[420318480,1775961034127,-150.0,0.0001536,2]
[420318481,1775961034157,-500.0,0.00015364,2]
[420318482,1775961034166,-151.0,0.00015364,2]
[420318483,1775961034200,-150.0,0.000154,2]
[420318484,1775961034209,-500.0,0.00015419,2]
[420318485,1775961034237,-151.0,0.00015419,2]
[420318486,1775961034276,-500.0,0.00015474,2]
[420318487,1775961034317,-151.0,0.00015474,2]
[420318488,1775961034347,-500.0,0.00015529,2]
[420318489,1775961034358,-151.0,0.00015529,2]
[420318490,1775961034373,-353.83050609,0.00015555,2]
[420318491,1775961034395,-500.0,0.00015584,2]
[420318492,1775961034412,-151.0,0.00015584,2]
[420318493,1775961034425,-150.0,0.000156,2]
[420318494,1775961034459,-150.0,0.000156,2]
[420318495,1775961034470,-1500.0,0.000156,5]
[420318496,1775961034505,-500.0,0.00015639,2]
[420318497,1775961034515,-160.14587461,0.00015639,2]
[420318498,1775961034546,-501.45604096,0.00015673,2]
[420318499,1775961034555,-505.78392458,0.00015673,2]
[420318500,1775961034573,-150.0,0.0001568,2]
[420318501,1775961034590,-248.754819,0.0001568,2]
[420318502,1775961034599,-500.0,0.00015694,2]
[420318503,1775961034616,-36851.2845,0.000157,2]
[420318504,1775961034632,-3516.47632525,0.000157,2]
[420318505,1775961034641,-2500.0,0.000157,2]
[420318506,1775961034656,-3100.0,0.000157,5]
[420318507,1775961034671,-7021.2380584,0.000157,2]
[420318508,1775961034680,-487.98894929,0.00015721,2]
[420318509,1775961034689,-200.0,0.00015747,2]
[420318510,1775961034698,-261.11644774,0.00015747,2]
[420318511,1775961034713,-181.08010149,0.00015747,2]
[420318512,1775961034723,-317.33739403,0.00015747,2]
[420318513,1775961034732,-558.7514826,0.00015749,2]
[420318514,1775961034743,-9281.91044187,0.00015764,2]
[420318515,1775961034757,-502.04743708,0.00015773,2]
[420318516,1775961034769,-500.0,0.00015799,2]
[420318517,1775961034779,-500.0,0.00015799,2]
[420318518,1775961034791,-215446.2695,0.000158,2]
[420318519,1775961034803,-150.0,0.000158,2]
[420318520,1775961034815,-4700.0,0.000158,5]
[420318521,1775961034825,-2989.171,0.00015839,2]
[420318522,1775961034836,-181.014,0.00015839,2]
[420318523,1775961034852,-300.24485,0.0001584,2]
[420318524,1775961034861,-300.24485,0.0001584,2]
[420318525,1775961034870,-300.24486,0.0001585,2]
[420318526,1775961034896,-3073.2269423,0.00015864,2]
[420318527,1775961034905,-34675.5465974,0.00015864,2]
[420318528,1775961034914,-9655.1636783,0.00015864,2]
[420318529,1775961034944,-3138.8187102,0.00015864,2]
[420318530,1775961034954,-1704.6719,0.000159,2]
[420318531,1775961034978,-2490.7285,0.000159,2]
[420318532,1775961034990,-1501.0,0.000159,3]
[420318533,1775961035003,-6300.0,0.000159,5]
[420318534,1775961035030,-12696.44020647,0.000159,2]
[420318535,1775961035039,-3848.81250785,0.000159,2]
[420318536,1775961035071,-250.0,0.00015934,2]
[420318537,1775961035089,-324.0,0.00015973,2]
[420318538,1775961035117,-225.89148488,0.00015984,2]
[420318539,1775961035134,-151.0,0.00015997,2]
[420318540,1775961035164,-303.12295336,0.00015999,2]
[420318541,1775961035174,-666.0,0.00015999,2]
[420318542,1775961035207,-500.0,0.00015999,2]
[420318543,1775961035222,-441.2688645,0.00015999,2]
[420318544,1775961035251,-2298.0,0.00016,5]
[420318545,1775961035265,-2528.0,0.00016,5]
[420318546,1775961035288,-240.39343943,0.00016,2]
[420318547,1775961035299,-150.61175282,0.00016,2]
[420318548,1775961035312,-158.94872739,0.00016,2]
[420318549,1775961035326,-152.24538663,0.00016,2]
[420318550,1775961035342,-150.87980789,0.00016,2]
[420318551,1775961035357,-1562970.02006119,0.00016,2]
[420318552,1775961035619,-827.70380581,0.00016,2]
[420318553,1775961035631,-2649.0,0.00016,2]
[420318554,1775961035643,-2000.0,0.00016,2]
[420318574,1775961041705,-919.23741616,0.00016,2]
[420318575,1775961041818,-3198.82868942,0.00016,2]
[420318576,1775961041836,-700.51094301,0.00016,2]
[420318577,1775961041852,-495.35015493,0.00016,2]
[420318578,1775961041874,-3575.413935,0.00016,2]
[420318587,1775961043676,-237.716339,0.0001568,2]
[420318588,1775961043689,-10123.47111349,0.00016,2]
[420318591,1775961044114,-8785.87932562,0.00016,2]
[420318597,1775961046554,-1000.0,0.00016,2]
[420318604,1775961101542,181.89,0.00029452,120]
[420318605,1775961123273,186.566113,0.00024164,120]
[420318606,1775961150029,500.0,0.00029452,120]
[420318607,1775961161619,279.026,0.0003013,120]
[420318608,1775961161656,1600.0,0.00025671,120]
[420318609,1775961161788,1600.0,0.00028004,120]
[420318610,1775961267395,602.569703,0.00022311,120]
[420318611,1775961397856,168.604271,0.00022181,120]
[420318612,1775961414679,190.5,0.00030137,120]
[420318613,1775961478701,225.963638,0.00021982,120]
[420318614,1775961715048,500.0,0.0003013,120]
[420318615,1775961778743,158.43,7.024e-05,2]
[420318616,1775961778927,158.43,8.429e-05,2]
[420318617,1775961864893,314.0,0.0003013,120]
[420318620,1775962233392,-158.43,9.834e-05,2]
[420318621,1775962233402,-158.43,0.00011238,2]
[420318622,1775962233413,-600.0,0.00011845,2]
[420318623,1775962233430,-158.43,0.00012643,2]
[420318624,1775962233440,-1200.0,0.00013289,2]
[420318625,1775962233450,-150.0,0.0001329,2]
[420318626,1775962233464,-150.0,0.0001329,2]
[420318627,1775962233475,-150.0,0.0001329,2]
[420318628,1775962233487,-150.0,0.0001329,2]
[420318629,1775962233497,-150.0,0.0001329,2]
[420318630,1775962233513,-150.0,0.0001329,2]
[420318631,1775962233522,-150.0,0.0001329,2]
[420318632,1775962233539,-150.20118153,0.0001329,2]
[420318633,1775962233549,-150.0,0.0001329,2]
[420318634,1775962233559,-150.0,0.0001329,2]
[420318635,1775962233578,-150.0,0.0001329,2]
[420318637,1775962233589,-150.0,0.00013389,2]
[420318639,1775962233609,-150.0,0.00013389,2]
[420318641,1775962233620,-150.0,0.00013425,2]
[420318643,1775962233630,-150.0,0.00013425,2]
[420318644,1775962233672,-150.0,0.00013487,2]
[420318645,1775962233681,-150.0,0.00013487,2]
[420318646,1775962233696,-150.0,0.00013501,2]
[420318647,1775962233711,-150.0,0.00013537,2]
[420318648,1775962233721,-150.0,0.00013559,2]
[420318649,1775962233731,-150.0,0.00013559,2]
[420318650,1775962233754,-150.0,0.00013586,2]
[420318651,1775962233765,-150.0,0.00013586,2]
[420318652,1775962233780,-150.0,0.00013586,2]
[420318653,1775962233798,-150.0,0.00013684,2]
[420318654,1775962233808,-150.0,0.00013684,2]
[420318655,1775962233836,-150.0,0.00013693,2]
[420318656,1775962233846,-150.0,0.00013693,2]
[420318657,1775962233869,-150.0,0.00013698,2]
[420318658,1775962233898,-16389.63,0.00013699,2]
[420318659,1775962233914,-832.95,0.00013699,2]
[420318660,1775962233928,-150.0,0.00013712,2]
[420318661,1775962233942,-150.0,0.00013783,2]
[420318662,1775962233953,-150.0,0.00013783,2]
[420318663,1775962233963,-150.0,0.00013783,2]
[420318664,1775962233979,-150.0,0.00013783,2]
[420318665,1775962233992,-150.0,0.00013827,2]
[420318666,1775962234014,-150.0,0.00013827,2]
[420318667,1775962234026,-150.0,0.00013881,2]
[420318668,1775962234038,-150.0,0.00013881,2]
[420318669,1775962234059,-150.0,0.00013881,2]
[420318670,1775962234092,-150.0,0.00013923,2]
[420318671,1775962234102,-150.0,0.00013962,2]
[420318672,1775962234116,-150.0,0.00013962,2]
[420318673,1775962234153,-500.0,0.00013962,2]
[420318674,1775962234174,-150.0,0.0001398,2]
[420318675,1775962234189,-150.0,0.0001398,2]
[420318676,1775962234203,-1000.0,0.00014,2]
[420318677,1775962234221,-150.0,0.00014029,2]
[420318678,1775962234232,-158.43,0.00014048,2]
[420318679,1775962234243,-150.0,0.00014078,2]
[420318680,1775962234273,-150.0,0.00014078,2]
[420318681,1775962234286,-150.0,0.00014096,2]
[420318682,1775962234296,-150.0,0.00014096,2]
[420318683,1775962234313,-150.0,0.00014134,2]
[420318684,1775962234329,-150.0,0.00014176,2]
[420318685,1775962234339,-150.0,0.00014176,2]
[420318686,1775962234348,-150.0,0.00014176,2]
[420318687,1775962234379,-150.0,0.0001423,2]
[420318688,1775962234388,-150.0,0.0001423,2]
[420318689,1775962234432,-200.0,0.00014253,2]
[420318690,1775962234457,-150.0,0.00014275,2]
[420318691,1775962234479,-150.0,0.00014275,2]
[420318692,1775962234503,-150.0,0.00014275,2]
[420318693,1775962234518,-150.0,0.00014275,2]
[420318694,1775962234535,-150.0,0.00014345,2]
[420318695,1775962234545,-1065.4,0.00014357,2]
[420318696,1775962234557,-150.0,0.00014364,2]
[420318697,1775962234567,-150.0,0.00014364,2]
[420318698,1775962234576,-150.0,0.00014373,2]
[420318699,1775962234586,-150.0,0.00014373,2]
[420318700,1775962234601,-832.95,0.00014384,2]
[420318701,1775962234611,-150.0,0.00014439,2]
[420318702,1775962234620,-150.0,0.00014472,2]
[420318703,1775962234630,-150.0,0.00014472,2]
[420318704,1775962234646,-150.0,0.00014472,2]
[420318705,1775962234658,-150.0,0.00014499,2]
[420318706,1775962234667,-150.0,0.00014499,2]
[420318707,1775962234676,-150.0,0.00014521,2]
[420318708,1775962234698,-150.0,0.00014556,2]
[420318709,1775962234707,-150.0,0.0001457,2]
[420318710,1775962234717,-150.0,0.0001457,2]
[420318711,1775962234740,-12082.3591,0.00014585,2]
[420318712,1775962234749,-150.0,0.000146,2]
[420318713,1775962234760,-150.0,0.00014603,2]
[420318714,1775962234774,-480.0,0.00014618,2]
[420318715,1775962234791,-150.0,0.00014633,2]
[420318716,1775962234803,-150.0,0.00014633,2]
[420318717,1775962234814,-150.0,0.00014669,2]
[420318718,1775962234830,-150.0,0.00014669,2]
[420318719,1775962234850,-5000.0,0.00014681,2]
[420318720,1775962234861,-165.4873,0.00014681,2]
[420318721,1775962234871,-2391.337,0.00014684,2]
[420318722,1775962234882,-181.014,0.00014684,2]
[420318723,1775962234893,-9512.80542099,0.00014685,2]
[420318724,1775962234907,-3268.88538263,0.00014685,2]
[420318725,1775962234928,-700.0,0.000147,5]
[420318726,1775962234937,-150.0,0.00014767,2]
[420318727,1775962234954,-151.69496974,0.00014767,2]
[420318728,1775962234966,-150.0,0.00014767,2]
[420318729,1775962234987,-152.17906836,0.00014767,2]
[420318730,1775962234996,-150.91794253,0.00014767,2]
[420318731,1775962235019,-150.0,0.00014767,2]
[420318732,1775962235028,-214.73970749,0.00014767,2]
[420318733,1775962235038,-150.0,0.00014767,2]
[420318734,1775962235062,-150.0,0.00014767,2]
[420318735,1775962235071,-152.13414095,0.00014767,2]
[420318736,1775962235086,-167.88230762,0.00014773,2]